bitfinex/quotes_SOLUSD_20250517
["timestamp","ask_amount","ask_price","bid_price","bid_amount"]
[1747475800700,5.94707106,168.15,168.07,5.94990182]
[1747475803709,136.9,168.14,168.05,1.567]
[1747475803892,136.9,168.14,168.04,4.24129849]
[1747475803893,26.0,168.1,168.04,4.24129849]
[1747475804085,26.0,168.1,168.01,13.85941059]
[1747475804598,26.0,168.1,168.02,18.64964886]
[1747475805001,5.94848611,168.11,168.04,18.64964886]
[1747475806302,5.94848611,168.11,168.01,7.9076]
[1747475806303,20.81970138,168.11,168.01,7.9076]
[1747475806491,20.81970138,168.11,168.02,18.64964886]
[1747475807411,20.81970138,168.11,168.02,24.60128416]
[1747475810621,20.81970138,168.11,168.02,28.84258265]
[1747475810808,5.94848611,168.11,168.02,28.84258265]
[1747475811310,5.94848611,168.11,168.02,43.72176369]
[1747475812106,5.94848611,168.11,168.02,28.84258265]
[1747475812518,168.8482642,168.12,168.02,28.84258265]
[1747475812822,168.8482642,168.12,168.04,18.64964886]
[1747475814025,168.8482642,168.12,168.04,24.60032622]
[1747475815121,183.71859491,168.12,168.04,18.64964886]
[1747475815300,183.71859491,168.12,168.04,24.60053831]
[1747475816723,168.8482642,168.12,168.04,24.60053831]
[1747475818020,168.8482642,168.12,168.04,28.8418368]
[1747475821821,136.9,168.12,168.04,28.8418368]
[1747475822121,5.9477942,168.13,168.04,28.8418368]
[1747475822635,5.94707106,168.15,168.04,43.71924694]
[1747475823724,5.94707106,168.15,168.08,24.59902293]
[1747475825831,5.94707106,168.15,168.08,18.64964886]
[1747475826634,20.81474872,168.15,168.08,18.64964886]
[1747475826833,5.94707106,168.15,168.08,24.59902529]
[1747475834257,5.94707106,168.15,168.08,18.64964886]
[1747475835356,5.94707106,168.15,168.08,24.59915788]
[1747475842156,5.94707106,168.15,168.08,18.64964886]
[1747475842337,20.81474872,168.15,168.08,18.64964886]
[1747475842749,5.94707106,168.15,168.08,24.5990989]
[1747475844356,168.84680257,168.16,168.08,31.1043989]
[1747475844655,142.84680257,168.16,168.08,31.1043989]
[1747475846265,142.84680257,168.16,168.08,35.34569739]
[1747475846564,5.94612463,168.18,168.08,76.21956697]
[1747475847961,5.94612463,168.18,168.08,80.89336671]
[1747475848664,5.94612463,168.18,168.08,76.21956697]
[1747475849464,5.94612463,168.18,168.11,24.59813497]
[1747475851669,5.94556203,168.2,168.13,18.64964886]
[1747475851855,5.94556203,168.2,168.13,37.66964886]
[1747475852448,5.94556203,168.2,168.13,43.61726178]
[1747475856875,26.0,168.23,168.13,58.48670804]
[1747475857077,26.0,168.23,168.15,18.64964886]
[1747475857280,31.94437813,168.23,168.15,18.64964886]
[1747475858867,31.94437813,168.23,168.15,24.59666423]
[1747475859977,31.94437813,168.23,168.15,18.64964886]
[1747475859978,46.80498563,168.23,168.15,18.64964886]
[1747475862773,5.94494976,168.21,168.15,18.64964886]
[1747475863167,5.94494976,168.21,168.15,24.59670965]
[1747475864383,5.94494976,168.21,168.15,18.64964886]
[1747475864578,5.94494976,168.21,168.15,24.59659874]
[1747475864785,5.94494976,168.21,168.15,5.94694988]
[1747475867988,5.94494976,168.21,168.14,24.59694128]
[1747475872984,5.94494976,168.21,168.14,37.64964886]
[1747475873193,5.94494976,168.21,168.14,43.597045]
[1747475875673,5.94494976,168.21,168.14,43.59694575]
[1747475878896,142.84467212,168.22,168.14,43.59694575]
[1747475880781,5.94467212,168.22,168.14,43.59694575]
[1747475880965,5.94467212,168.22,168.14,37.64964886]
[1747475881169,5.94467212,168.22,168.14,43.59706498]
[1747475882881,20.80616302,168.22,168.14,43.59706498]
[1747475883875,5.94467212,168.22,168.14,43.59706498]
[1747475888103,5.94467212,168.22,168.14,47.83836347]
[1747475892707,5.94467212,168.22,168.15,4.24129849]
[1747475894717,136.9,168.21,168.15,4.24129849]
[1747475895311,26.0,168.2,168.12,20.27374886]
[1747475895526,26.0,168.2,168.12,18.64964886]
[1747475896398,136.9,168.19,168.12,18.64964886]
[1747475897397,5.94601022,168.18,168.12,18.64964886]
[1747475897807,20.81103578,168.18,168.12,18.64964886]
[1747475901994,20.81103578,168.18,168.11,18.64964886]
[1747475914019,20.81103578,168.18,168.1,18.64964886]
[1747475916323,5.94601022,168.18,168.1,24.59841575]
[1747475917814,4.9462987,168.18,168.1,24.59841575]
[1747475918016,4.9462987,168.18,168.1,18.64964886]
[1747475918216,19.81132426,168.18,168.1,18.64964886]
[1747475919609,136.9,168.17,168.1,18.64964886]
[1747475920226,5.94671741,168.16,168.1,18.64964886]
[1747475921407,20.81351093,168.16,168.09,1.5642]
[1747475922714,20.81351093,168.16,168.08,18.64964886]
[1747475924121,52.12059798,168.16,168.05,5.82729849]
[1747475924441,26.0,168.13,168.05,5.82729849]
[1747475926231,5.94813228,168.12,168.05,1.586]
[1747475928236,20.81846299,168.12,168.04,18.64964886]
[1747475929338,20.81846299,168.12,168.02,31.3124226]
[1747475929339,5.94813228,168.12,168.03,18.64964886]
[1747475929529,5.94813228,168.12,168.03,24.60096707]
[1747475934022,20.81846299,168.12,168.03,24.60096707]
[1747475934440,20.81846299,168.12,168.03,18.64964886]
[1747475934639,136.9,168.11,168.03,18.64964886]
[1747475935424,136.9,168.11,168.03,24.60087405]
[1747475936854,5.94883997,168.1,168.03,24.60087405]
[1747475937243,5.94883997,168.1,168.03,18.64964886]
[1747475939338,5.94883997,168.1,168.03,24.60087249]
[1747475940548,46.82093991,168.1,168.03,18.64964886]
[1747475940765,136.9,168.09,168.02,18.64964886]
[1747475942243,136.9,168.09,168.01,1.5417]
[1747475942549,5.94954783,168.08,168.01,1.5417]
[1747475943450,5.94954783,168.08,168.02,18.64964886]
[1747475944757,5.94954783,168.08,168.02,24.60117961]
[1747475946653,136.9,168.09,168.02,24.60117961]
[1747475948761,142.84925237,168.09,168.02,24.60117961]
[1747475949967,142.84925237,168.09,168.02,18.64964886]
[1747475952160,142.84925237,168.09,168.02,24.60131544]
[1747475953156,20.8205387,168.11,168.02,24.60131544]
[1747475953348,20.8205387,168.11,168.02,18.64964886]
[1747475956163,20.8205387,168.11,168.02,24.60123201]
[1747475956860,5.94848611,168.11,168.02,24.60123201]
[1747475957441,5.94813228,168.12,168.02,24.60123201]
[1747475959162,5.94813228,168.12,167.99,146.20059046]
[1747475959163,36.48964886,168.02,167.99,4.25906302]
[1747475959461,38.62,168.01,167.95,8.51812605]
[1747475959842,38.62,168.01,167.87,18.64964886]
[1747475960234,38.62,168.01,167.86,8.51812605]
[1747475960641,38.62,168.01,167.87,18.64964886]
[1747475960843,50.59523809,168.0,167.87,18.64964886]
[1747475961669,30.0,167.97,167.87,18.64964886]
[1747475963039,86.29819096,167.96,167.87,18.64964886]
[1747475963246,30.0,167.94,167.87,18.64964886]
[1747475963662,30.0,167.94,167.85,18.64964886]
[1747475964274,20.8420175,167.93,167.85,18.64964886]
[1747475964465,30.0,167.91,167.85,18.64964886]
[1747475965267,5.95592614,167.9,167.85,18.64964886]
[1747475968163,20.8457415,167.9,167.85,18.64964886]
[1747475968554,20.8457415,167.9,167.8,18.64964886]
[1747475968862,19.6,167.89,167.8,18.64964886]
[1747475969042,20.8457415,167.9,167.8,18.64964886]
[1747475969247,26.0,167.89,167.8,18.64964886]
[1747475969452,26.0,167.87,167.8,18.64964886]
[1747475969646,26.0,167.87,167.75,1.6397]
[1747475969855,26.0,167.87,167.75,21.2797]
[1747475970060,26.0,167.87,167.76,18.64964886]
[1747475970248,35.9573454,167.86,167.76,18.64964886]
[1747475970548,50.85070891,167.86,167.76,18.64964886]
[1747475971276,50.85070891,167.86,167.76,24.61050436]
[1747475974440,20.85070891,167.86,167.76,24.61050436]
[1747475993813,20.85070891,167.86,167.76,18.64964886]
[1747475994025,26.0,167.82,167.71,1.6345]
[1747475994320,26.0,167.78,167.71,1.6345]
[1747475994816,26.0,167.78,167.72,18.64964886]
[1747475996398,26.0,167.78,167.71,18.64964886]
[1747475996399,5.96054121,167.77,167.71,18.64964886]
[1747475997312,5.96054121,167.77,167.7,18.64964886]
[1747475997830,20.86189425,167.77,167.69,18.64964886]
[1747476000810,26.0,167.73,167.64,18.64964886]
[1747476001215,26.0,167.72,167.64,18.64964886]
[1747476002437,5.96267366,167.71,167.64,18.64964886]
[1747476002739,20.86935781,167.71,167.64,18.64964886]
[1747476003715,5.96267366,167.71,167.64,24.61469153]
[1747476003925,19.8,167.72,167.64,24.61469153]
[1747476004243,5.96196267,167.73,167.64,24.61469153]
[1747476005629,5.96196267,167.73,167.64,39.52760014]
[1747476006423,25.76167795,167.74,167.64,39.52760014]
[1747476006729,25.76167795,167.74,167.66,18.64964886]
[1747476007112,19.8,167.74,167.66,18.64964886]
[1747476007824,25.76169548,167.74,167.66,18.64964886]
[1747476008436,25.76169548,167.74,167.68,18.64964886]
[1747476009834,25.76169548,167.74,167.68,5.96348255]
[1747476011129,25.76169548,167.74,167.66,24.61410072]
[1747476012429,25.76169548,167.74,167.66,18.64964886]
[1747476012733,25.76169548,167.74,167.64,18.64964886]
[1747476012921,162.9,167.73,167.64,18.64964886]
[1747476013330,162.9,167.73,167.63,1.5198]
[1747476013839,162.9,167.73,167.64,18.64964886]
[1747476014525,5.96231814,167.72,167.63,18.64964886]
[1747476014726,40.52811351,167.72,167.62,18.64964886]
[1747476015342,40.52811351,167.72,167.61,24.61587999]
[1747476015508,40.52811351,167.72,167.62,18.64964886]
[1747476015914,40.52811351,167.72,167.62,5.96564812]
[1747476017737,40.52811351,167.72,167.61,24.61579284]
[1747476018043,42.15281351,167.72,167.61,24.61579284]
[1747476018949,5.96302921,167.7,167.61,24.61579284]
[1747476019953,20.87060225,167.7,167.61,24.61579284]
[1747476020149,46.87060225,167.7,167.61,18.64964886]
[1747476021231,46.87060225,167.7,167.59,1.5663]
[1747476021554,46.87060225,167.7,167.6,18.64964886]
[1747476022555,46.87060225,167.7,167.6,24.61608085]
[1747476023049,19.82,167.69,167.6,18.64964886]
[1747476024350,26.0,167.66,167.6,18.64964886]
[1747476024649,5.96480763,167.65,167.6,18.64964886]
[1747476028255,136.9,167.68,167.6,18.64964886]
[1747476028459,162.9,167.68,167.6,18.64964886]
[1747476029851,5.96422611,167.67,167.6,24.61606741]
[1747476031761,5.96422611,167.67,167.6,18.64964886]
[1747476031947,20.87446646,167.67,167.6,18.64964886]
[1747476032960,20.87446646,167.67,167.58,18.64964886]
[1747476033745,136.9,167.66,167.58,18.64964886]
[1747476034964,5.96480763,167.65,167.58,18.64964886]
[1747476035356,20.87682671,167.65,167.57,0.30325738]
[1747476036154,26.0,167.62,167.57,0.30325738]
[1747476036839,5.96623113,167.61,167.57,0.30325738]
[1747476037261,157.78180895,167.61,167.57,0.30325738]
[1747476038762,142.86623113,167.61,167.57,0.30325738]
[1747476041749,157.78180895,167.61,167.57,0.30325738]
[1747476042873,136.9,167.6,167.57,0.30325738]
[1747476043250,5.96694313,167.59,167.57,0.30325738]
[1747476045254,31.96694313,167.59,167.57,0.30325738]
[1747476047183,136.9,167.58,167.57,0.30325738]
[1747476047480,142.8672992,167.58,167.57,0.30325738]
[1747476053183,25.6272992,167.58,167.57,0.30325738]
[1747476057776,5.9672992,167.58,167.57,0.30325738]
[1747476060391,19.7,167.62,167.57,0.30325738]
[1747476060574,5.96480763,167.65,167.58,18.64964886]
[1747476060968,46.87682671,167.65,167.57,0.30325738]
[1747476061169,20.87682671,167.65,167.57,0.30325738]
[1747476061481,26.0,167.62,167.57,0.30325738]
[1747476061794,5.96623113,167.61,167.57,0.30325738]
[1747476062464,20.88180895,167.61,167.57,0.30325738]
[1747476062965,26.0,167.58,167.57,0.30325738]
[1747476063793,31.9672992,167.58,167.57,0.30325738]
[1747476066193,5.9672992,167.58,167.57,0.30325738]
[1747476068699,5.96658711,167.6,167.57,0.30325738]
[1747476069071,5.96633552,167.61,167.57,0.30325738]
[1747476069599,5.96596198,167.62,167.57,0.30325738]
[1747476069777,5.96480763,167.65,167.58,18.64964886]
[1747476069977,31.96480763,167.65,167.58,18.64964886]
[1747476070178,46.87682671,167.65,167.57,18.95290624]
[1747476071096,46.87682671,167.65,167.57,0.30325738]
[1747476071801,5.96480763,167.65,167.57,24.92037659]
[1747476073472,162.56453983,167.66,167.57,24.92037659]
[1747476073671,25.66453983,167.66,167.57,24.92037659]
[1747476074799,25.66453983,167.66,167.57,39.83951486]
[1747476075793,19.7,167.66,167.57,39.83951486]
[1747476076000,5.96338481,167.69,167.58,34.2106]
[1747476076184,5.96338481,167.69,167.61,18.64964886]
[1747476077199,5.96338481,167.69,167.63,18.64964886]
[1747476077599,5.96309913,167.7,167.63,18.64964886]
[1747476077900,5.96309913,167.7,167.65,18.64964886]
[1747476078798,19.7,167.71,167.66,1.6608]
[1747476079208,5.96255314,167.72,167.66,1.6608]
[1747476081401,5.96255314,167.72,167.67,18.64964886]
[1747476082283,20.86834851,167.72,167.66,1.6608]
[1747476082488,26.0,167.71,167.65,18.64964886]
[1747476083605,31.96289667,167.71,167.65,24.61444421]
[1747476084104,31.96289667,167.71,167.65,18.64964886]
[1747476085680,5.96231856,167.72,167.65,24.61429887]
[1747476088700,142.86201265,167.73,167.65,24.61429887]
[1747476090721,5.96160724,167.74,167.65,24.61429887]
[1747476097020,20.86562536,167.74,167.65,18.64964886]
[1747476097535,20.86562536,167.74,167.65,24.61443457]
[1747476097904,20.86562536,167.74,167.65,18.64964886]
[1747476099220,20.86562536,167.74,167.65,24.61436733]
[1747476102222,5.96160724,167.74,167.65,24.61436733]
[1747476104631,5.96160724,167.74,167.65,18.64964886]
[1747476105832,20.86562536,167.74,167.65,18.64964886]
[1747476110615,20.86562536,167.74,167.65,24.61441273]
[1747476111822,20.86562536,167.74,167.65,18.64964886]
[1747476113036,136.9,167.73,167.65,18.64964886]
[1747476113216,136.9,167.73,167.63,18.64964886]
[1747476113217,26.0,167.72,167.63,18.64964886]
[1747476113941,26.0,167.7,167.63,18.64964886]
[1747476114142,136.9,167.69,167.62,18.64964886]
[1747476114443,26.0,167.66,167.61,4.24008875]
[1747476115244,26.0,167.66,167.59,18.64964886]
[1747476116028,5.96480763,167.65,167.59,18.64964886]
[1747476116435,20.87682671,167.65,167.59,18.64964886]
[1747476117715,19.42,167.64,167.58,1.622]
[1747476118020,38.82,167.64,167.57,18.95290624]
[1747476118435,38.82,167.64,167.57,0.30325738]
[1747476119358,26.0,167.61,167.57,0.30325738]
[1747476119832,5.96658711,167.6,167.57,0.30325738]
[1747476122019,142.86658711,167.6,167.57,0.30325738]
[1747476122221,26.0,167.58,167.57,0.30325738]
[1747476122423,45.38,167.58,167.57,0.30325738]
[1747476123445,207.64658711,167.6,167.57,0.30325738]
[1747476123849,5.96551929,167.63,167.57,18.95290624]
[1747476124049,5.96551929,167.63,167.59,18.64964886]
[1747476124228,142.86526104,167.64,167.59,18.64964886]
[1747476124433,5.96445186,167.66,167.59,18.64964886]
[1747476124642,31.96445186,167.66,167.59,18.64964886]
[1747476125447,51.36445186,167.66,167.59,18.64964886]
[1747476125837,66.27558152,167.66,167.59,18.64964886]
[1747476126040,66.27558152,167.66,167.58,1.5744]
[1747476129627,136.9,167.65,167.58,1.5744]
[1747476130351,136.9,167.65,167.57,0.30325738]
[1747476131059,26.0,167.62,167.57,0.30325738]
[1747476131439,5.96623113,167.61,167.57,0.30325738]
[1747476134177,20.88180895,167.61,167.57,0.30325738]
[1747476134933,5.96623113,167.61,167.57,0.30325738]
[1747476135573,136.9,167.65,167.57,0.30325738]
[1747476135783,5.96516344,167.64,167.57,6.27084418]
[1747476135952,5.96492252,167.65,167.57,6.27084418]
[1747476136160,136.9,167.69,167.6,18.64964886]
[1747476136375,5.96374045,167.68,167.6,18.64964886]
[1747476136580,56.99315004,167.72,167.6,18.64964886]
[1747476136768,5.96267366,167.71,167.62,18.64964886]
[1747476138266,5.96267366,167.71,167.64,18.64964886]
[1747476139783,18.21315004,167.72,167.64,18.64964886]
[1747476140087,18.21315004,167.72,167.67,6.2469]
[1747476140885,24.17557557,167.72,167.67,6.2469]
[1747476142269,24.17557557,167.72,167.67,12.21092749]
[1747476142474,24.17557557,167.72,167.67,6.2469]
[1747476148699,18.21315004,167.72,167.68,18.64964886]
[1747476149195,24.1755058,167.72,167.68,18.64964886]
[1747476149609,18.21315004,167.72,167.68,24.613387]
[1747476149795,19.4,167.76,167.68,24.613387]
[1747476150106,5.95983074,167.79,167.7,18.64964886]
[1747476150822,5.95947556,167.8,167.72,18.64964886]
[1747476151791,5.95947556,167.8,167.72,5.96222268]
[1747476151979,5.95947556,167.8,167.73,18.64964886]
[1747476155597,5.95947556,167.8,167.73,24.61152205]
[1747476155797,5.95947556,167.8,167.75,18.64964886]
[1747476156483,14.89720474,167.82,167.75,18.64964886]
[1747476159200,136.9,167.81,167.71,18.64964886]
[1747476160007,156.18,167.8,167.71,18.64964886]
[1747476160308,136.9,167.79,167.71,18.64964886]
[1747476160479,26.0,167.76,167.7,18.64964886]
[1747476160904,5.96125186,167.75,167.67,24.61374128]
[1747476161581,5.96125186,167.75,167.65,52.9394]
[1747476161582,20.86438151,167.75,167.66,18.64964886]
[1747476161991,30.0,167.74,167.66,18.64964886]
[1747476162702,49.28,167.74,167.66,18.64964886]
[1747476162909,20.86686936,167.73,167.66,18.64964886]
[1747476168314,50.67668275,167.73,167.66,18.64964886]
[1747476168597,30.0,167.72,167.66,18.64964886]
[1747476168914,20.86935781,167.71,167.66,18.64964886]
[1747476171206,5.96196267,167.73,167.66,18.64964886]
[1747476171609,20.86686936,167.73,167.66,18.64964886]
[1747476173123,14.90490669,167.73,167.66,18.64964886]
[1747476180226,5.96160724,167.74,167.66,24.61406091]
[1747476180602,20.86562536,167.74,167.66,18.64964886]
[1747476181214,26.0,167.73,167.66,18.64964886]
[1747476181428,20.86811351,167.72,167.66,18.64964886]
[1747476183413,14.90579537,167.72,167.66,18.64964886]
[1747476184222,5.96160724,167.74,167.66,18.64964886]
[1747476185931,5.96160724,167.74,167.66,24.61407983]
[1747476186234,5.96160724,167.74,167.68,18.64964886]
[1747476187809,5.96160724,167.74,167.68,24.61322142]
[1747476188515,5.96160724,167.74,167.68,18.64964886]
[1747476189637,5.96089651,167.76,167.68,18.64964886]
[1747476189837,20.8631378,167.76,167.68,18.64964886]
[1747476190042,20.8631378,167.76,167.65,83.6932]
[1747476190341,20.8631378,167.76,167.66,18.64964886]
[1747476191027,50.66762039,167.76,167.66,18.64964886]
[1747476191219,26.0,167.73,167.66,18.64964886]
[1747476191424,45.24,167.72,167.64,4.26433554]
[1747476191728,20.87060225,167.7,167.64,4.26433554]
[1747476192437,40.09060225,167.7,167.64,4.26433554]
[1747476192740,40.09060225,167.7,167.62,18.64964886]
[1747476193241,5.96302921,167.7,167.62,18.64964886]
[1747476194246,142.86268335,167.71,167.64,18.64964886]
[1747476194545,142.86268335,167.71,167.63,31.96551929]
[1747476194546,142.86268335,167.71,167.66,18.64964886]
[1747476194757,136.9,167.71,167.66,18.64964886]
[1747476195225,142.86271678,167.71,167.66,18.64964886]
[1747476195635,5.96271678,167.71,167.66,18.64964886]
[1747476196346,20.86584883,167.74,167.66,18.64964886]
[1747476198133,20.86584883,167.74,167.64,18.64964886]
[1747476198630,136.9,167.73,167.64,18.64964886]
[1747476200247,20.86811351,167.72,167.64,18.64964886]
[1747476201035,5.96231814,167.72,167.64,24.61480047]
[1747476201535,20.86811351,167.72,167.64,18.64964886]
[1747476201734,20.86811351,167.72,167.64,24.61468813]
[1747476204836,20.86811351,167.72,167.63,18.64964886]
[1747476205232,46.86811351,167.72,167.63,18.64964886]
[1747476205428,46.86811351,167.72,167.62,4.26433554]
[1747476205628,26.0,167.68,167.62,4.26433554]
[1747476205929,136.9,167.67,167.62,4.26433554]
[1747476206437,5.96445186,167.66,167.62,4.26433554]
[1747476206840,20.87558152,167.66,167.62,4.26433554]
[1747476209453,5.96445186,167.66,167.62,4.26433554]
[1747476210665,142.86421829,167.67,167.63,18.64964886]
[1747476211649,142.86421829,167.67,167.61,18.64964886]
[1747476212034,157.77445864,167.67,167.59,18.64964886]
[1747476212455,142.86421829,167.67,167.59,18.64964886]
[1747476212957,136.9,167.67,167.63,1.5809]
[1747476214025,142.86415009,167.67,167.63,1.5809]
[1747476214460,142.86415009,167.67,167.59,5.84523554]
[1747476214832,176.97439044,167.67,167.59,5.84523554]
[1747476215038,176.97439044,167.67,167.59,11.81204708]
[1747476215355,142.86415009,167.67,167.59,11.81204708]
[1747476215549,136.9,167.67,167.59,11.81204708]
[1747476216758,19.2,167.7,167.6,18.64964886]
[1747476217069,5.96338481,167.69,167.6,18.64964886]
[1747476218757,5.96338481,167.69,167.62,18.64964886]
[1747476219643,5.96338481,167.69,167.62,5.96582804]
[1747476221362,136.9,167.72,167.62,26.0]
[1747476221564,136.9,167.72,167.62,44.64964886]
[1747476222360,5.96267366,167.71,167.64,18.64964886]
[1747476222558,136.9,167.72,167.64,18.64964886]
[1747476222870,136.9,167.72,167.66,18.64964886]
[1747476223065,5.96205032,167.73,167.66,18.64964886]
[1747476223269,5.96205032,167.73,167.67,1.5447]
[1747476224071,5.96125186,167.75,167.67,7.50862921]
[1747476225370,5.96125186,167.75,167.67,1.5447]
[1747476225951,20.86438151,167.75,167.67,1.5447]
[1747476227351,20.86438151,167.75,167.66,18.64964886]
[1747476228273,20.86438151,167.75,167.64,24.61469775]
[1747476229874,5.96125186,167.75,167.64,39.52760636]
[1747476230672,5.96125186,167.75,167.64,43.7919419]
[1747476232173,5.96125186,167.75,167.66,18.64964886]
[1747476233981,5.96125186,167.75,167.68,18.64964886]
[1747476235278,5.96125186,167.75,167.7,18.64964886]
[1747476237108,51.16099257,167.76,167.7,5.96298933]
[1747476237676,19.2,167.76,167.7,5.96298933]
[1747476237878,5.95983074,167.79,167.7,5.96298933]
[1747476238781,5.95912043,167.81,167.74,18.64964886]
[1747476239179,5.95912043,167.81,167.74,24.61122674]
[1747476241375,5.95912043,167.81,167.74,18.64964886]
[1747476242690,20.85692151,167.81,167.74,18.64964886]
[1747476242865,20.85692151,167.81,167.72,18.64964886]
[1747476243063,46.85692151,167.81,167.72,18.64964886]
[1747476243481,46.85692151,167.81,167.71,18.64964886]
[1747476243670,183.75692151,167.81,167.71,18.64964886]
[1747476244604,142.85912043,167.81,167.71,50.61228278]
[1747476245391,8.94043232,167.82,167.75,18.64964886]
[1747476246586,8.94043232,167.82,167.77,18.64964886]
[1747476247169,136.9,167.85,167.77,44.64964886]
[1747476247380,5.95708991,167.87,167.77,44.64964886]
[1747476247872,25.11673217,167.88,167.77,44.64964886]
[1747476248174,25.11673217,167.88,167.81,18.64964886]
[1747476248488,5.95592614,167.9,167.83,18.64964886]
[1747476249369,5.95557143,167.91,167.83,18.64964886]
[1747476249989,5.95557143,167.91,167.83,5.9583854]
[1747476251096,5.95557143,167.91,167.83,18.64964886]
[1747476251500,5.95557143,167.91,167.83,5.95816167]
[1747476252396,5.95557143,167.91,167.83,18.64964886]
[1747476253081,5.95557143,167.91,167.83,20.28774886]
[1747476253279,5.95450756,167.94,167.87,18.64964886]
[1747476253591,5.95379852,167.96,167.87,18.64964886]
[1747476254467,5.95379852,167.96,167.88,5.95663569]
[1747476254673,5.95379852,167.96,167.89,18.64964886]
[1747476256801,5.95379852,167.96,167.89,5.95621709]
[1747476257511,5.95379852,167.96,167.87,24.60663938]
[1747476258305,5.95379852,167.96,167.87,18.64964886]
[1747476258691,20.83829482,167.96,167.87,18.64964886]
[1747476259606,6.5505,167.95,167.84,18.64964886]
[1747476259795,6.5505,167.95,167.84,44.64964886]
[1747476260330,20.84077646,167.94,167.84,50.60757504]
[1747476261517,14.8862689,167.94,167.84,50.60757504]
[1747476263511,14.8862689,167.94,167.84,18.64964886]
[1747476263822,153.3236689,167.94,167.84,18.64964886]
[1747476264911,153.3236689,167.94,167.84,24.60765252]
[1747476265915,159.27817646,167.94,167.84,24.60765252]
[1747476266224,26.0,167.91,167.84,18.64964886]
[1747476268720,5.95592614,167.9,167.84,18.64964886]
[1747476269995,5.95592614,167.9,167.84,24.60753576]
[1747476270511,5.95486214,167.93,167.84,24.60753576]
[1747476272795,5.95486214,167.93,167.86,18.64964886]
[1747476274920,5.95450756,167.94,167.87,5.95699052]
[1747476275097,5.95450756,167.94,167.88,18.64964886]
[1747476276203,5.95450756,167.94,167.86,18.64964886]
[1747476276409,20.84077646,167.94,167.86,18.64964886]
[1747476277728,20.84077646,167.94,167.86,24.60695659]
[1747476279125,5.95450756,167.94,167.86,24.60695659]
[1747476280817,5.95379852,167.96,167.86,50.60695659]
[1747476281139,5.95379852,167.96,167.86,69.74695659]
[1747476281317,20.83829482,167.96,167.86,69.74695659]
[1747476284238,5.95379852,167.96,167.86,69.74695659]
[1747476284926,5.95379852,167.96,167.88,18.64964886]
[1747476285814,5.95379852,167.96,167.9,18.64964886]
[1747476287233,5.95379852,167.96,167.88,24.60620362]
[1747476287415,5.95379852,167.96,167.88,18.64964886]
[1747476288019,20.83829482,167.96,167.88,18.64964886]
[1747476289250,20.83829482,167.96,167.88,24.60628185]
[1747476292950,5.95379852,167.96,167.88,24.60628185]
[1747476296430,20.83829482,167.96,167.88,18.64964886]
[1747476296954,20.83829482,167.96,167.88,24.6062194]
[1747476297653,5.95379852,167.96,167.88,24.6062194]
[1747476303656,20.83829482,167.96,167.88,18.64964886]
[1747476304635,20.83829482,167.96,167.88,24.60618735]
[1747476305470,20.83829482,167.96,167.88,18.64964886]
[1747476307131,20.83829482,167.96,167.86,30.26433554]
[1747476307132,26.0,167.92,167.86,4.26433554]
[1747476307666,26.0,167.88,167.83,4.26433554]
[1747476307982,5.95699052,167.87,167.83,4.26433554]
[1747476308471,20.84946684,167.87,167.8,18.64964886]
[1747476309451,39.96946684,167.87,167.8,18.64964886]
[1747476309968,39.96946684,167.87,167.77,18.64964886]
[1747476310966,30.0,167.86,167.77,44.64964886]
[1747476311852,35.95770029,167.86,167.79,18.64964886]
[1747476312959,35.95770029,167.86,167.79,5.95971537]
[1747476313150,35.95770029,167.86,167.78,18.64964886]
[1747476313354,50.8510638,167.86,167.76,10.66041591]
[1747476313659,50.8510638,167.86,167.77,18.64964886]
[1747476314281,26.0,167.83,167.76,4.26931591]
[1747476314559,26.0,167.81,167.76,4.26931591]
[1747476314766,164.4594,167.83,167.77,18.64964886]
[1747476315072,5.95876534,167.82,167.77,18.64964886]
[1747476315759,31.95876534,167.82,167.76,4.26931591]
[1747476315987,46.85567869,167.82,167.76,4.26931591]
[1747476316567,46.85567869,167.82,167.72,18.64964886]
[1747476317772,46.85567869,167.82,167.73,5.96196267]
[1747476318071,30.0,167.8,167.78,18.64964886]
[1747476319069,5.95778698,167.85,167.78,18.64964886]
[1747476319547,5.95778698,167.85,167.76,18.64964886]
[1747476320773,5.95778698,167.85,167.76,24.6104342]
[1747476323073,20.85203779,167.85,167.76,18.64964886]
[1747476323273,46.85203779,167.85,167.74,18.64964886]
[1747476323451,136.9,167.84,167.74,18.64964886]
[1747476323877,136.9,167.84,167.73,18.64964886]
[1747476324048,136.9,167.84,167.72,18.64964886]
[1747476324469,26.0,167.81,167.72,18.64964886]
[1747476324775,45.12,167.8,167.72,18.64964886]
[1747476325469,5.95983074,167.79,167.72,18.64964886]
[1747476325880,5.95983074,167.79,167.72,24.61183723]
[1747476330578,5.95983074,167.79,167.72,18.64964886]